bitfinex/quotes_SOLUSD_20240604
["timestamp","ask_amount","ask_price","bid_price","bid_amount"]
[1717510764218,15.2607,166.87,166.82,0.34]
[1717510764408,6.5243,166.86,166.82,0.34]
[1717510764922,6.5243,166.86,166.82,2.5579]
[1717510765716,13.4343,166.86,166.82,2.5579]
[1717510765920,13.3003,166.86,166.81,2.218]
[1717510766476,6.3903,166.86,166.82,2.2179]
[1717510767215,13.3003,166.86,166.82,2.2179]
[1717510767419,13.3003,166.86,166.81,2.558]
[1717510767740,6.3903,166.86,166.81,0.34]
[1717510767944,6.3903,166.86,166.81,2.558]
[1717510768234,8.778,166.85,166.81,0.34]
[1717510768442,13.4704,166.85,166.81,0.34]
[1717510769128,6.5604,166.85,166.81,0.34]
[1717510769335,8.7779,166.85,166.81,0.17]
[1717510769716,6.5604,166.85,166.81,2.388]
[1717510770437,6.5604,166.85,166.82,2.2178]
[1717510770806,2.2172,166.88,166.82,2.2178]
[1717510771127,15.7386,166.88,166.83,2.3878]
[1717510771343,9.1272,166.88,166.83,0.17]
[1717510771507,9.1272,166.88,166.82,2.5579]
[1717510771508,6.0628,166.87,166.82,2.5579]
[1717510771702,8.28,166.87,166.82,0.17]
[1717510771902,8.28,166.87,166.83,0.17]
[1717510772148,8.28,166.87,166.82,0.17]
[1717510772706,8.28,166.87,166.82,2.3879]
[1717510772707,6.0628,166.87,166.82,2.3879]
[1717510773010,2.2174,166.86,166.83,0.17]
[1717510773314,12.9728,166.87,166.82,0.17]
[1717510773719,15.1901,166.87,166.82,0.17]
[1717510773926,2.2171,166.89,166.82,0.17]
[1717510774234,9.1271,166.88,166.81,0.34]
[1717510775013,9.1272,166.88,166.81,7.25]
[1717510775433,2.2172,166.88,166.81,7.25]
[1717510775632,9.1272,166.88,166.81,7.25]
[1717510775817,2.2172,166.88,166.81,7.25]
[1717510776020,2.2172,166.88,166.82,2.2179]
[1717510776216,2.2172,166.88,166.83,0.34]
[1717510776433,0.03741285,166.9,166.84,9.1275]
[1717510776626,2.25431285,166.9,166.85,0.34]
[1717510777239,2.25431285,166.9,166.85,7.25]
[1717510778030,0.03741285,166.9,166.85,0.34]
[1717510778231,0.03741285,166.9,166.86,2.3872]
[1717510778534,0.03741285,166.9,166.86,0.34]
[1717510780135,0.03741285,166.9,166.86,2.5573]
[1717510780340,0.03741285,166.9,166.86,0.34]
[1717510780513,0.03741285,166.9,166.86,2.5573]
[1717510780711,0.03741285,166.9,166.86,45.5373]
[1717510780921,0.03741285,166.9,166.86,36.41]
[1717510781214,0.03741285,166.9,166.86,43.32]
[1717510781856,0.03741285,166.9,166.86,45.5374]
[1717510782017,0.03741285,166.9,166.88,2.2171]
[1717510782224,0.03741285,166.9,166.89,0.34]
[1717510783315,0.03741285,166.9,166.89,0.17]
[1717510783512,0.03741285,166.9,166.88,9.4671]
[1717510784238,0.03741285,166.9,166.88,0.34]
[1717510785541,0.03741285,166.9,166.88,2.5571]
[1717510786340,0.03741285,166.9,166.89,38.287]
[1717510786530,0.03741285,166.9,166.89,45.537]
[1717510786731,0.03741285,166.9,166.89,67.8015]
[1717510787143,0.03741285,166.9,166.89,60.8915]
[1717510787347,0.03741285,166.9,166.89,67.8015]
[1717510787744,0.03741285,166.9,166.89,45.1616]
[1717510787945,0.03741285,166.9,166.89,0.17]
[1717510788130,0.03741285,166.9,166.89,42.98]
[1717510788445,0.03741285,166.9,166.89,45.367]
[1717510789250,0.03741285,166.9,166.89,45.537]
[1717510789722,0.03741285,166.9,166.89,38.627]
[1717510789917,0.03741285,166.9,166.89,45.537]
[1717510790245,16.96380165,167.0,166.89,43.32]
[1717510790421,6.91,166.96,166.9,2.5568]
[1717510790624,9.1261,166.96,166.9,2.5568]
[1717510790821,2.2158,166.98,166.92,9.1266]
[1717510791035,9.1258,166.98,166.93,0.34]
[1717510791348,2.216,166.97,166.93,0.34]
[1717510791546,9.126,166.97,166.92,0.34]
[1717510792254,2.216,166.97,166.92,0.34]
[1717510792439,6.91,166.97,166.92,2.5566]
[1717510792627,2.2158,166.98,166.92,2.5566]
[1717510792833,9.1258,166.98,166.92,38.6266]
[1717510793337,2.2158,166.98,166.92,38.6266]
[1717510793851,2.216,166.97,166.92,0.34]
[1717510794029,9.126,166.97,166.92,0.34]
[1717510795351,6.34470165,167.0,166.92,0.17]
[1717510795352,2.2161,166.96,166.92,0.17]
[1717510795553,9.126,166.97,166.92,0.17]
[1717510796353,9.126,166.97,166.92,2.3866]
[1717510796559,2.216,166.97,166.92,0.17]
[1717510796755,9.126,166.97,166.92,0.34]
[1717510797056,9.1258,166.98,166.92,2.5565]
[1717510797659,2.216,166.97,166.92,2.5565]
[1717510797977,6.91,166.98,166.93,2.2164]
[1717510798133,2.2157,166.99,166.94,0.34]
[1717510798333,8.56030165,167.0,166.94,2.5563]
[1717510798534,8.56030165,167.0,166.94,45.5363]
[1717510798757,2.2157,166.99,166.94,36.41]
[1717510798947,2.2157,166.99,166.94,38.6263]
[1717510799256,8.56030165,167.0,166.94,45.5363]
[1717510799438,15.47030165,167.0,166.95,2.2162]
[1717510799638,15.47030165,167.0,166.96,0.34]
[1717510799847,15.47030165,167.0,166.97,0.17]
[1717510800153,2.2158,166.98,166.96,0.17]
[1717510800351,9.1258,166.98,166.96,0.17]
[1717510800560,6.91,166.97,166.9,38.2868]
[1717510800768,6.91,166.96,166.91,2.2167]
[1717510800941,9.1261,166.96,166.9,38.2868]
[1717510801135,6.91,166.96,166.91,2.2166]
[1717510801359,17.42280165,167.0,166.85,10.5959]
[1717510801360,9.1265,166.93,166.85,10.5959]
[1717510801549,6.91,166.93,166.86,42.98]
[1717510801750,9.1265,166.93,166.87,2.2172]
[1717510801939,4.4324,166.96,166.88,2.2171]
[1717510801940,2.2164,166.94,166.88,2.2171]
[1717510802144,9.1265,166.93,166.87,2.2172]
[1717510802345,6.91,166.93,166.88,2.217]
[1717510802865,9.1265,166.93,166.87,2.2172]
[1717510803242,9.1265,166.93,166.88,2.2171]
[1717510803457,6.91,166.93,166.89,2.2169]
[1717510803771,6.91,166.92,166.88,0.17]
[1717510804070,9.1264,166.94,166.88,2.3871]
[1717510804252,6.91,166.94,166.89,2.387]
[1717510804450,2.2162,166.95,166.89,2.387]
[1717510804451,9.1262,166.95,166.9,0.17]
[1717510804651,9.1261,166.96,166.9,2.3868]
[1717510804845,21.38540165,167.0,166.91,2.3867]
[1717510805161,6.91,166.96,166.92,0.17]
[1717510805466,2.2162,166.95,166.92,0.17]
[1717510805659,6.91,166.94,166.86,36.07]
[1717510805844,9.1264,166.94,166.88,2.2171]
[1717510806044,2.2165,166.93,166.89,0.17]
[1717510806251,6.63,166.98,166.9,2.2167]
[1717510806476,6.63,166.98,166.91,0.17]
[1717510806477,8.8459,166.98,166.91,0.17]
[1717510806652,2.2159,166.97,166.91,7.08]
[1717510806976,9.1259,166.97,166.91,2.3866]
[1717510807553,9.1259,166.97,166.92,0.17]
[1717510808048,6.91,166.95,166.92,0.17]
[1717510808246,2.2162,166.95,166.91,0.34]
[1717510808774,2.2161,166.96,166.91,0.34]
[1717510809149,9.1261,166.96,166.91,0.34]
[1717510809572,2.2161,166.96,166.91,0.34]
[1717510809863,9.1261,166.96,166.91,2.5567]
[1717510810069,6.91,166.96,166.91,2.5567]
[1717510810453,9.1261,166.96,166.91,2.5567]
[1717510810873,9.126,166.97,166.91,2.5567]
[1717510811057,6.91,166.97,166.92,2.2165]
[1717510811369,2.2162,166.95,166.89,2.2168]
[1717510811570,2.2161,166.96,166.9,2.2167]
[1717510811871,2.2161,166.96,166.9,38.2867]
[1717510812077,2.2159,166.98,166.91,38.2866]
[1717510812382,2.2159,166.97,166.91,38.2867]
[1717510812744,2.2159,166.97,166.92,2.5566]
[1717510813148,2.2158,166.98,166.92,2.5566]
[1717510813355,2.216,166.97,166.93,6.91]
[1717510813573,2.216,166.97,166.94,0.34]
[1717510814275,2.2158,166.98,166.94,0.34]
[1717510814776,13.25470165,167.0,166.94,0.34]
[1717510814777,2.216,166.97,166.94,0.34]
[1717510815172,2.2158,166.98,166.94,0.34]
[1717510816075,2.2159,166.97,166.94,0.34]
[1717510816579,6.91,166.99,166.89,2.2169]
[1717510816580,6.91,166.96,166.89,2.2169]
[1717510816876,2.2163,166.94,166.89,6.91]
[1717510817060,2.2163,166.94,166.9,6.91]
[1717510817582,2.2162,166.95,166.9,6.91]
[1717510817763,2.2162,166.95,166.91,0.17]
[1717510818163,2.2161,166.96,166.91,7.08]
[1717510818368,2.2162,166.95,166.91,7.08]
[1717510818569,6.6473,166.99,166.91,7.08]
[1717510818570,2.2164,166.94,166.91,0.17]
[1717510818863,2.2162,166.95,166.91,0.17]
[1717510819077,2.2163,166.94,166.91,0.17]
[1717510819269,2.2163,166.94,166.9,6.91]
[1717510819468,2.2165,166.93,166.87,2.2172]
[1717510819666,2.2165,166.93,166.88,6.91]
[1717510819865,2.2163,166.94,166.88,9.1271]
[1717510820066,9.1262,166.95,166.89,2.217]
[1717510820660,2.2162,166.95,166.9,0.17]
[1717510820860,2.2163,166.94,166.9,0.17]
[1717510821066,2.2165,166.93,166.87,2.2172]
[1717510821377,2.2165,166.93,166.89,6.91]
[1717510821564,2.2165,166.93,166.87,2.2172]
[1717510821565,2.2165,166.93,166.88,6.91]
[1717510821887,2.2165,166.93,166.88,9.1271]
[1717510822086,2.2165,166.93,166.88,2.2171]
[1717510822466,2.2165,166.93,166.86,36.07]
[1717510822467,2.2164,166.94,166.89,9.467]
[1717510822668,6.91,166.96,166.9,9.1268]
[1717510822669,2.2161,166.96,166.9,9.1268]
[1717510822868,2.2162,166.95,166.91,0.34]
[1717510823287,9.1264,166.94,166.87,2.2171]
[1717510823499,6.91,166.94,166.88,0.17]
[1717510823686,2.2164,166.94,166.88,9.2971]
[1717510823994,2.2164,166.94,166.88,7.08]
[1717510824360,2.2164,166.94,166.89,6.91]
[1717510824580,2.2164,166.94,166.9,0.17]
[1717510824888,2.2164,166.94,166.89,7.08]
[1717510825098,2.2164,166.94,166.89,0.17]
[1717510825277,6.91,166.95,166.88,0.34]
[1717510825476,2.2165,166.93,166.88,7.08]
[1717510825887,2.2165,166.93,166.87,9.2972]
[1717510826411,2.2166,166.92,166.87,7.08]
[1717510826904,2.217,166.9,166.83,2.2177]
[1717510827081,2.217,166.89,166.85,6.91]
[1717510827289,6.91,166.91,166.85,6.91]
[1717510827290,2.2169,166.9,166.85,6.91]
[1717510827489,6.91,166.91,166.85,6.91]
[1717510827867,11.0821,166.94,166.85,6.91]
[1717510828197,2.2171,166.88,166.82,38.2879]
[1717510828431,27.64,166.96,166.81,6.1933]
[1717510828578,11.3438,166.9,166.83,6.91]
[1717510828776,2.2174,166.87,166.83,6.91]
[1717510829591,2.2174,166.87,166.84,6.91]
[1717510829804,2.2171,166.88,166.84,6.91]
[1717510829978,2.217,166.89,166.81,42.2633]
[1717510830183,2.217,166.89,166.85,6.91]
[1717510830998,2.2169,166.9,166.86,6.91]
[1717510831202,2.217,166.89,166.86,6.91]
[1717510831383,17.9928,166.93,166.84,2.5576]
[1717510831384,2.2165,166.93,166.88,6.91]
[1717510831579,2.2167,166.92,166.89,6.91]
[1717510831782,4.4325,166.95,166.89,6.91]
[1717510832108,4.4325,166.95,166.88,6.91]
[1717510832109,2.2167,166.92,166.88,6.91]
[1717510832313,2.2167,166.92,166.87,0.17]
[1717510832314,2.2167,166.92,166.89,6.91]
[1717510832516,2.2168,166.91,166.87,0.17]
[1717510832693,2.2168,166.9,166.84,2.3876]
[1717510832896,2.2168,166.9,166.85,6.91]
[1717510833096,6.91,166.92,166.84,0.17]
[1717510833301,2.2171,166.88,166.85,6.91]
[1717510833506,2.2171,166.88,166.83,2.3877]
[1717510833723,2.217,166.89,166.85,6.91]
[1717510835209,2.2171,166.88,166.85,6.91]
[1717510835705,2.217,166.89,166.85,6.91]
[1717510835905,2.2171,166.88,166.85,6.91]
[1717510836224,2.2171,166.88,166.82,2.2179]
[1717510836408,6.91,166.9,166.83,2.2178]
[1717510836725,4.4336,166.91,166.85,6.91]
[1717510836726,2.217,166.89,166.85,6.91]
[1717510836898,2.217,166.89,166.86,6.91]
[1717510838298,2.2171,166.89,166.84,6.91]
[1717510838493,2.2171,166.89,166.85,6.91]
[1717510838940,2.2169,166.9,166.85,6.91]
[1717510839119,2.2169,166.9,166.85,9.1275]
[1717510839316,2.2169,166.9,166.85,6.91]
[1717510839721,2.217,166.89,166.86,6.91]
[1717510840518,2.217,166.89,166.87,6.91]
[1717510840750,8.8648,166.96,166.87,6.91]
[1717510840955,13.297,166.96,166.9,6.91]
[1717510841127,13.297,166.96,166.89,6.91]
[1717510841128,20.207,166.96,166.89,6.91]
[1717510841334,2.2165,166.93,166.89,6.91]
[1717510841749,2.2165,166.93,166.88,0.34]
[1717510841955,2.2163,166.95,166.91,6.91]
[1717510842126,2.2163,166.94,166.91,6.91]
[1717510842333,2.2163,166.94,166.9,6.91]
[1717510842546,2.2165,166.93,166.9,6.91]
[1717510843055,6.91,166.92,166.83,8.12832586]
[1717510843259,2.2169,166.9,166.85,6.91]
[1717510843570,2.2169,166.9,166.86,6.91]
[1717510843734,2.2167,166.92,166.87,6.91]
[1717510844149,2.2168,166.91,166.87,6.91]
[1717510844850,2.2168,166.91,166.86,6.91]
[1717510845351,6.91,166.93,166.87,6.91]
[1717510845352,2.2166,166.93,166.87,6.91]
[1717510845554,2.2164,166.94,166.88,9.2971]
[1717510845856,11.3417,166.98,166.89,0.17]
[1717510846039,2.2161,166.96,166.92,6.91]
[1717510846421,2.2162,166.95,166.92,6.91]
[1717510847245,6.91,166.98,166.92,6.91]
[1717510847442,4.4314,166.99,166.91,0.34]
[1717510847443,2.2162,166.96,166.91,0.34]
[1717510847655,13.25470165,167.0,166.93,6.91]
[1717510847858,13.25470165,167.0,166.94,0.17]
[1717510848153,2.2159,166.98,166.94,0.17]
[1717510848561,2.2159,166.97,166.94,0.17]
[1717510848765,2.2161,166.96,166.91,0.17]
[1717510849062,6.91,166.97,166.91,0.17]
[1717510849263,2.2162,166.95,166.9,6.91]
[1717510849563,6.91,166.97,166.9,6.91]
[1717510849564,2.2164,166.94,166.9,6.91]
[1717510850064,2.2162,166.95,166.89,0.17]
[1717510850243,2.2162,166.95,166.9,6.91]
[1717510850638,6.6474,166.99,166.89,0.34]
[1717510850860,2.2164,166.94,166.9,0.17]
[1717510851244,2.2165,166.93,166.89,6.91]
[1717510851566,2.2165,166.93,166.88,0.17]
[1717510851878,2.2165,166.93,166.88,7.08]
[1717510852341,6.91,166.95,166.89,9.127]
[1717510852692,2.2162,166.95,166.9,7.08]
[1717510853188,2.2163,166.94,166.9,7.08]
[1717510853356,2.2163,166.94,166.9,0.17]
[1717510853669,2.2165,166.93,166.89,0.34]
[1717510853976,2.2165,166.93,166.89,0.17]
[1717510854647,2.2165,166.93,166.88,2.3871]
[1717510854848,2.2164,166.94,166.88,9.2971]
[1717510855870,2.2164,166.94,166.89,7.08]
[1717510856068,6.91,166.95,166.89,6.91]
[1717510856455,2.2164,166.94,166.89,6.91]
[1717510856669,2.2162,166.95,166.9,0.17]
[1717510856853,4.4317,166.98,166.9,0.17]
[1717510857055,2.2163,166.95,166.9,0.17]
[1717510857843,2.2163,166.95,166.9,7.08]
[1717510858846,4.4317,166.98,166.92,6.91]
[1717510859049,22.4205,166.99,166.91,0.17]
[1717510859050,2.2163,166.95,166.91,0.17]
[1717510859251,2.2163,166.95,166.91,7.08]
[1717510859452,2.2161,166.96,166.91,0.17]
[1717510859680,2.2163,166.94,166.91,6.91]
[1717510859850,2.2162,166.95,166.91,6.91]
[1717510860054,2.2163,166.94,166.9,7.08]
[1717510860766,2.2162,166.95,166.9,7.08]
[1717510861349,2.2163,166.94,166.9,7.08]
[1717510861549,2.2165,166.93,166.9,0.17]
[1717510861767,2.2165,166.93,166.9,7.25]
[1717510862081,6.6474,166.99,166.9,0.34]
[1717510862277,2.2161,166.96,166.91,6.91]
[1717510862486,2.2162,166.95,166.9,7.25]
[1717510863088,2.2162,166.95,166.91,6.91]
[1717510863665,2.2162,166.95,166.92,0.17]
[1717510863870,2.2162,166.95,166.92,0.34]
[1717510864287,2.2161,166.96,166.92,0.34]
[1717510865201,2.2161,166.96,166.92,7.25]
[1717510865495,2.2159,166.97,166.92,7.25]
[1717510865689,2.2159,166.97,166.93,6.91]
[1717510866598,10.77580165,167.0,166.94,0.17]
[1717510866599,2.2158,166.98,166.94,0.17]
[1717510866890,2.2158,166.98,166.94,7.08]
[1717510867799,6.34470165,167.0,166.95,0.17]
[1717510867964,2.2159,166.97,166.95,0.17]
[1717510868693,2.2158,166.98,166.94,6.5112]
[1717510868899,2.2158,166.98,166.94,13.4212]
[1717510869097,2.216,166.97,166.94,13.4212]
[1717510869293,2.216,166.97,166.94,6.5112]
[1717510870180,2.2158,166.99,166.94,6.5112]
[1717510870393,13.25470165,167.0,166.94,13.4212]
[1717510870394,2.2158,166.98,166.94,13.4212]
[1717510870695,6.34470165,167.0,166.94,8.7274]
[1717510870899,2.2157,166.99,166.94,6.5112]
[1717510871088,8.56020165,167.0,166.97,6.91]
[1717510871271,8.56030165,167.0,166.97,6.91]
[1717510871472,8.56030165,167.0,166.96,7.25]
[1717510872075,2.2157,166.99,166.96,7.25]
[1717510872278,6.34470165,167.0,166.96,0.34]
[1717510872279,2.2158,166.98,166.96,0.34]
[1717510872487,2.2159,166.97,166.92,15.5784]
[1717510872691,2.2159,166.97,166.92,21.6878]
[1717510872885,2.2159,166.97,166.92,28.5978]
[1717510873289,2.2158,166.98,166.92,30.8144]
[1717510873511,2.216,166.97,166.92,28.5978]
[1717510873992,4.4317,166.98,166.9,36.07]
[1717510874196,6.91,166.96,166.9,36.07]
[1717510874395,6.91,166.95,166.88,24.7067]
[1717510874615,2.2163,166.94,166.88,9.1271]
[1717510874917,2.2165,166.93,166.87,44.2766]
[1717510875076,2.2166,166.92,166.87,6.1094]
[1717510875277,2.2166,166.93,166.88,0.3132121]
[1717510875494,2.2166,166.92,166.87,13.0194]
[1717510875685,2.2165,166.93,166.87,15.2366]
[1717510876088,2.2166,166.92,166.87,13.0194]
[1717510876287,2.2167,166.91,166.87,13.0194]
[1717510876493,2.2166,166.92,166.87,13.0194]
[1717510876908,6.91,166.95,166.88,6.91]
[1717510877089,2.2166,166.92,166.88,6.91]
[1717510877302,4.4324,166.96,166.88,6.91]
[1717510877503,6.91,166.95,166.88,6.91]
[1717510877704,2.2165,166.93,166.88,6.91]
[1717510878411,2.2166,166.92,166.89,0.34]
[1717510880011,2.2166,166.92,166.88,7.25]
[1717510880703,2.2166,166.92,166.88,0.34]
[1717510880899,2.2172,166.88,166.82,8.6853]
[1717510881101,6.91,166.89,166.82,13.3774]
[1717510881294,2.2173,166.87,166.82,13.3774]
[1717510881627,2.2169,166.9,166.85,6.91]
[1717510882102,2.2169,166.9,166.84,2.2176]
[1717510882302,2.217,166.89,166.83,2.2178]
[1717510882703,2.2169,166.9,166.83,2.2178]
[1717510882928,2.2169,166.9,166.84,2.2176]
[1717510883219,2.217,166.89,166.83,2.3877]
[1717510883628,2.217,166.89,166.83,0.17]
[1717510883830,2.2171,166.88,166.83,0.17]
[1717510884133,6.91,166.89,166.82,6.4674]
[1717510884310,2.2173,166.87,166.83,6.91]
[1717510884519,2.2174,166.86,166.82,6.91]
[1717510884723,6.91,166.88,166.8,15.2614]
[1717510884912,2.2176,166.85,166.82,6.91]
[1717510885099,2.2176,166.85,166.8,15.2614]
[1717510885307,2.2176,166.85,166.78,44.6662]
[1717510885308,2.2173,166.87,166.81,6.91]
[1717510885507,10.4416,166.86,166.74,10.34722586]
[1717510885829,2.2181,166.81,166.78,6.91]
[1717510886006,2.2177,166.84,166.78,6.91]
[1717510886205,6.0067,166.86,166.8,6.91]
[1717510886424,2.2175,166.85,166.8,6.91]
[1717510886633,2.2175,166.85,166.78,6.91]
[1717510886634,2.2178,166.83,166.78,6.91]
[1717510887204,8.7694,166.82,166.75,2.2188]
[1717510887416,2.2179,166.82,166.78,6.91]
[1717510887627,6.91,166.85,166.75,2.2188]
[1717510887804,9.1277,166.84,166.77,6.91]
[1717510888005,6.5515,166.86,166.72,2.2192]
[1717510888205,2.2182,166.8,166.72,65.8092]
[1717510888405,6.5515,166.86,166.72,65.8092]
[1717510888406,2.2183,166.79,166.72,38.1692]
[1717510888819,2.2182,166.8,166.76,6.91]
[1717510889007,2.218,166.82,166.76,6.91]
[1717510889406,2.218,166.82,166.77,6.91]
[1717510889926,6.91,166.84,166.72,63.59]
[1717510889927,2.2178,166.84,166.79,6.91]
[1717510890336,2.2178,166.83,166.79,6.91]
[1717510890512,6.5515,166.86,166.8,6.91]
[1717510890715,2.2179,166.82,166.74,2.219]
[1717510890947,2.2181,166.81,166.78,6.91]
[1717510891524,6.91,166.84,166.73,38.1691]
[1717510891525,2.2182,166.8,166.73,38.1691]
[1717510891710,6.91,166.83,166.74,0.17]
[1717510892010,2.2182,166.8,166.74,0.17]
[1717510892320,2.2183,166.79,166.75,6.91]
[1717510892922,2.2183,166.79,166.72,2.2192]
[1717510893113,2.2183,166.79,166.75,6.91]
[1717510893428,4.4352,166.85,166.7,6.0362]
[1717510893429,6.91,166.81,166.74,6.91]
[1717510893615,2.2183,166.79,166.74,6.91]
[1717510894127,2.2183,166.8,166.75,6.91]
[1717510894324,2.2184,166.79,166.75,6.91]
[1717510894511,2.2184,166.79,166.73,0.17]
[1717510894841,2.2185,166.78,166.74,6.91]
[1717510895134,2.2185,166.78,166.75,6.91]
[1717510895441,2.2183,166.79,166.75,6.91]
[1717510895811,2.2182,166.8,166.73,2.5591]
[1717510896076,2.2181,166.81,166.74,2.219]
[1717510896212,2.2179,166.82,166.78,6.91]
[1717510896425,2.2181,166.81,166.78,6.91]
[1717510896619,2.2182,166.8,166.78,6.91]
[1717510897034,11.3454,166.84,166.75,0.17]
[1717510897233,2.2183,166.8,166.74,0.17]
[1717510897735,2.2183,166.8,166.76,6.91]
[1717510898115,2.2184,166.78,166.74,0.17]
[1717510898320,2.2184,166.78,166.74,6.91]
[1717510898642,2.2184,166.78,166.75,6.91]
[1717510898941,2.2184,166.78,166.74,6.91]
[1717510899122,2.2184,166.78,166.75,6.91]
[1717510900345,2.2183,166.79,166.76,6.91]
[1717510900637,2.2183,166.79,166.73,2.3891]
[1717510900823,2.2184,166.78,166.73,0.17]
[1717510901022,2.2184,166.78,166.75,6.91]
[1717510901835,2.2187,166.77,166.73,0.17]
[1717510902035,2.2187,166.77,166.73,6.91]
[1717510902230,2.2187,166.77,166.7,41.9862]
[1717510902231,2.2187,166.76,166.7,44.2057]
[1717510902432,2.2187,166.76,166.73,6.91]
[1717510902619,2.2186,166.77,166.73,6.91]
[1717510902936,2.2184,166.79,166.75,6.91]
[1717510903323,2.2187,166.77,166.7,41.9862]
[1717510903547,2.2183,166.79,166.76,6.91]
[1717510903940,2.2183,166.79,166.73,2.219]
[1717510904146,2.2182,166.8,166.74,0.34]
[1717510904641,2.2181,166.81,166.77,6.91]
[1717510904832,2.2181,166.81,166.78,6.91]
[1717510905631,2.2182,166.8,166.78,6.91]
[1717510905836,2.2182,166.8,166.77,6.91]
[1717510906429,2.2182,166.8,166.74,0.17]
[1717510906753,2.2183,166.79,166.77,6.91]
[1717510906929,2.2182,166.8,166.77,6.91]
[1717510907646,2.2182,166.8,166.74,2.389]
[1717510907949,2.2182,166.8,166.77,6.91]
[1717510908128,2.2182,166.8,166.75,0.17]
[1717510908322,2.2182,166.8,166.77,6.91]
[1717510908948,2.2182,166.8,166.76,6.91]
[1717510909440,2.2182,166.8,166.75,0.17]
[1717510909827,2.2183,166.79,166.77,6.91]
[1717510910026,2.2182,166.8,166.77,6.91]
[1717510910945,2.2183,166.79,166.77,6.91]
[1717510911253,2.2182,166.8,166.77,6.91]
[1717510912939,2.2182,166.8,166.78,6.91]
[1717510913144,2.2183,166.79,166.77,6.91]
[1717510914647,2.2183,166.79,166.75,0.17]
[1717510914847,2.2183,166.79,166.76,6.91]
[1717510915243,4.436,166.82,166.76,6.91]
[1717510915441,2.2184,166.79,166.76,6.91]
[1717510916148,2.2182,166.8,166.76,6.91]
[1717510916344,2.2183,166.79,166.75,0.17]
[1717510916545,2.2183,166.79,166.77,6.91]
[1717510916734,2.2183,166.79,166.76,6.91]
[1717510917047,2.2185,166.78,166.76,6.91]
[1717510917751,2.2184,166.79,166.76,6.91]
[1717510918850,2.2184,166.79,166.77,6.91]
[1717510919355,2.2184,166.79,166.74,0.17]
[1717510919568,2.2184,166.79,166.76,6.91]
[1717510921262,2.2184,166.79,166.77,6.91]
[1717510921968,2.218,166.82,166.78,6.91]
[1717510922183,2.218,166.82,166.79,6.91]
[1717510922458,2.2177,166.84,166.81,6.91]
[1717510923031,2.2182,166.8,166.74,38.1689]
[1717510923248,2.2182,166.8,166.75,0.34]
[1717510923529,2.2181,166.81,166.78,6.91]
[1717510923755,4.4356,166.84,166.78,6.91]
[1717510924262,2.218,166.82,166.78,6.91]
[1717510924764,2.2178,166.83,166.79,7.08]
[1717510924963,2.2178,166.83,166.81,6.91]